{"text_format":"1","workbook":"xlsx","n_sheets":3,"sheets":["Feuil1","Feuil2","Feuil3"],"not_rendered":{"charts":0,"images":0,"macros":0,"external_links":0,"defined_names":0,"comments":0,"pivot_tables":0},"unopened":[],"bounds":{"document_bytes":16777216,"sheet_cells":100000,"rows_first":2000,"rows_last":500,"rows_between":2000,"halvings":0,"cell_chars":16384,"cell_head_chars":4096},"cells_cut":0,"cells_raw":0,"read":"whole","date_system":"1900"}

{"sheet":"Feuil1","index":0,"n_rows":21,"n_cols":5,"rows_kept":21,"cut":false,"hidden":false,"merged":[]}
[null,null,null,"propal 1","propal 2"]
["ne se prononce pas","conforme","conforme",{"$f":"IF(COUNTIF(A2:C2,\"conforme\")=3,\"conforme\",IF(COUNTIF(A2:C2,\"non conforme\"),\"non conforme\",IF(COUNTIF(A2:C2,\"ne se prononce pas\"),\"ne se prononce pas\",\"\")))","v":"ne se prononce pas"},{"$f":"IF(COUNTIF(A2:C2,\"non conforme\"),\"non conforme\",IF(COUNTIF(A2:C2,\"ne se prononce pas\"),\"ne se prononce pas\",\"conforme\"))","v":"ne se prononce pas"}]
["conforme","conforme","conforme",{"$f":"IF(COUNTIF(A3:C3,\"conforme\")=3,\"conforme\",IF(COUNTIF(A3:C3,\"non conforme\"),\"non conforme\",IF(COUNTIF(A3:C3,\"ne se prononce pas\"),\"ne se prononce pas\",\"\")))","v":"conforme"},{"$f":"IF(COUNTIF(A3:C3,\"non conforme\"),\"non conforme\",IF(COUNTIF(A3:C3,\"ne se prononce pas\"),\"ne se prononce pas\",\"conforme\"))","v":"conforme"}]
["non conforme","non conforme","ne se prononce pas","non conforme","non conforme"]
["conforme","conforme","ne se prononce pas","ne se prononce pas","ne se prononce pas"]
["conforme","conforme","conforme","conforme","conforme"]
["ne se prononce pas","conforme","ne se prononce pas","ne se prononce pas","ne se prononce pas"]
["non conforme","non conforme","conforme","non conforme","non conforme"]
["conforme",null,null,"","conforme"]
[null,"non conforme",null,"non conforme","non conforme"]
[null,null,"ne se prononce pas","ne se prononce pas","ne se prononce pas"]
[null,null,null,"","conforme"]
[null,null,null,"","conforme"]
[null,null,null,"","conforme"]
[null,null,null,"","conforme"]
[null,null,null,""]
[null,null,null,""]
[null,null,null,""]
[null,null,null,""]
[null,null,null,""]
[null,null,null,""]

{"sheet":"Feuil2","index":1,"n_rows":0,"n_cols":0,"rows_kept":0,"cut":false,"hidden":false,"merged":[]}

{"sheet":"Feuil3","index":2,"n_rows":0,"n_cols":0,"rows_kept":0,"cut":false,"hidden":false,"merged":[]}